[Event "Live Chess"]
[Site "Chess.com"]
[Date "2023.05.20"]
[Round "-"]
[White "wadsy27"]
[Black "OSmith06"]
[Result "1-0"]
[WhiteElo "2549"]
[BlackElo "1664"]
[TimeControl "300"]
[EndTime "13:04:37 PDT"]
[Termination "wadsy27 won by checkmate"]

1. c4 {[%clk 0:04:58.4]} 1... Nf6 {[%clk 0:04:58.7]} 2. g3 {[%clk 0:04:57.5]}
2... e6 {[%clk 0:04:57.5]} 3. Bg2 {[%clk 0:04:57]} 3... d5 {[%clk 0:04:56.6]} 4.
Nf3 {[%clk 0:04:56.3]} 4... a6 {[%clk 0:04:54.6]} 5. b3 {[%clk 0:04:53.5]} 5...
Bd6 {[%clk 0:04:52.5]} 6. Bb2 {[%clk 0:04:52.6]} 6... O-O {[%clk 0:04:50.7]} 7.
O-O {[%clk 0:04:49.5]} 7... c5 {[%clk 0:04:47]} 8. cxd5 {[%clk 0:04:47.2]} 8...
exd5 {[%clk 0:04:43.9]} 9. d4 {[%clk 0:04:46.2]} 9... cxd4 {[%clk 0:04:40.8]}
10. Nxd4 {[%clk 0:04:44]} 10... Nc6 {[%clk 0:04:37.6]} 11. Nc3 {[%clk
0:04:42.6]} 11... Be5 {[%clk 0:04:30.2]} 12. Na4 {[%clk 0:04:30]} 12... Nxd4
{[%clk 0:04:13.2]} 13. Bxd4 {[%clk 0:04:29.9]} 13... Bxd4 {[%clk 0:04:11.5]} 14.
Qxd4 {[%clk 0:04:29.1]} 14... b5 {[%clk 0:04:09.9]} 15. Nb6 {[%clk 0:04:26.7]}
15... Rb8 {[%clk 0:04:03.9]} 16. Nxd5 {[%clk 0:04:25.3]} 16... Nxd5 {[%clk
0:03:54.9]} 17. Qxd5 {[%clk 0:04:25.2]} 17... Qxd5 {[%clk 0:03:48]} 18. Bxd5
{[%clk 0:04:25.1]} 18... Bf5 {[%clk 0:03:47.5]} 19. Rac1 {[%clk 0:04:21.4]}
19... Rfd8 {[%clk 0:03:43.5]} 20. e4 {[%clk 0:04:16.4]} 20... Bg4 {[%clk
0:03:34.8]} 21. f3 {[%clk 0:04:15.2]} 21... Bh3 {[%clk 0:03:28.9]} 22. Rfd1
{[%clk 0:04:13.9]} 22... Rbc8 {[%clk 0:03:19.7]} 23. g4 {[%clk 0:04:10.2]} 23...
h5 {[%clk 0:03:11.8]} 24. Kf2 {[%clk 0:04:08.9]} 24... hxg4 {[%clk 0:03:08.7]}
25. Kg3 {[%clk 0:04:07.7]} 25... Rxc1 {[%clk 0:02:53.5]} 26. Rxc1 {[%clk
0:04:06.4]} 26... Rd6 {[%clk 0:02:51.4]} 27. fxg4 {[%clk 0:03:57.4]} 27... Rh6
{[%clk 0:02:44.4]} 28. Rc8+ {[%clk 0:03:50.7]} 28... Kh7 {[%clk 0:02:41.3]} 29.
Bxf7 {[%clk 0:03:49.6]} 29... Bf1 {[%clk 0:02:34.2]} 30. Bg8+ {[%clk 0:03:46.9]}
30... Kg6 {[%clk 0:02:31.4]} 31. Rc6+ {[%clk 0:03:45.7]} 31... Kg5 {[%clk
0:02:29.9]} 32. h4+ {[%clk 0:03:44.7]} 32... Rxh4 {[%clk 0:02:26.7]} 33. Rc5+
{[%clk 0:03:44]} 33... Kh6 {[%clk 0:02:21.2]} 34. Kxh4 {[%clk 0:03:42.9]} 34...
g5+ {[%clk 0:02:20.1]} 35. Rxg5 {[%clk 0:03:40.3]} 35... a5 {[%clk 0:02:18.5]}
36. e5 {[%clk 0:03:36.7]} 36... a4 {[%clk 0:02:17.2]} 37. e6 {[%clk 0:03:35.5]}
37... axb3 {[%clk 0:02:16.2]} 38. e7 {[%clk 0:03:32.1]} 38... bxa2 {[%clk
0:02:11]} 39. e8=Q {[%clk 0:03:30.9]} 39... Bd3 {[%clk 0:02:09]} 40. Qh5# {[%clk
0:03:29.6]} 1-0

[Event "Live Chess"]
[Site "Chess.com"]
[Date "2023.05.20"]
[Round "-"]
[White "chekagain"]
[Black "Delacorta"]
[Result "0-1"]
[WhiteElo "814"]
[BlackElo "1449"]
[TimeControl "300"]
[EndTime "13:04:46 PDT"]
[Termination "Delacorta won by checkmate"]

1. e4 {[%clk 0:04:58.8]} 1... e6 {[%clk 0:04:58.8]} 2. d4 {[%clk 0:04:55.9]}
2... d5 {[%clk 0:04:58]} 3. e5 {[%clk 0:04:55]} 3... c5 {[%clk 0:04:56.8]} 4.
Nf3 {[%clk 0:04:52.3]} 4... Nc6 {[%clk 0:04:54.3]} 5. dxc5 {[%clk 0:04:51]} 5...
Bxc5 {[%clk 0:04:52.6]} 6. Nc3 {[%clk 0:04:49.8]} 6... Nge7 {[%clk 0:04:47.5]}
7. Na4 {[%clk 0:04:28.7]} 7... Bb6 {[%clk 0:04:43.8]} 8. Nxb6 {[%clk 0:04:26.7]}
8... axb6 {[%clk 0:04:43.7]} 9. b3 {[%clk 0:04:25.8]} 9... Ng6 {[%clk
0:04:42.3]} 10. Bb2 {[%clk 0:04:25.3]} 10... Qc7 {[%clk 0:04:40.5]} 11. g3
{[%clk 0:04:23]} 11... Ncxe5 {[%clk 0:04:35.3]} 12. Nxe5 {[%clk 0:04:21.5]}
12... Nxe5 {[%clk 0:04:34.2]} 13. Bg2 {[%clk 0:04:20.1]} 13... O-O {[%clk
0:04:31.4]} 14. O-O {[%clk 0:04:18.7]} 14... Bd7 {[%clk 0:04:12.8]} 15. Re1
{[%clk 0:04:15.4]} 15... Ng6 {[%clk 0:04:10.1]} 16. Qd4 {[%clk 0:04:10.6]} 16...
f6 {[%clk 0:04:01.6]} 17. g4 {[%clk 0:04:01.5]} 17... Qc5 {[%clk 0:03:59.6]} 18.
g5 {[%clk 0:03:26.8]} 18... Qxd4 {[%clk 0:03:46.8]} 19. Bxd4 {[%clk 0:03:24.7]}
19... fxg5 {[%clk 0:03:45.9]} 20. Rad1 {[%clk 0:03:18.7]} 20... Rxa2 {[%clk
0:03:29.8]} 21. c4 {[%clk 0:03:03.4]} 21... Nf4 {[%clk 0:03:01.9]} 22. Bxb6
{[%clk 0:02:51.3]} 22... Nxg2 {[%clk 0:02:55.8]} 23. Kxg2 {[%clk 0:02:49.5]}
23... Bc6 {[%clk 0:02:51]} 24. cxd5 {[%clk 0:02:47.9]} 24... Bxd5+ {[%clk
0:02:48.6]} 25. Kf1 {[%clk 0:02:46.4]} 25... h5 {[%clk 0:02:37.6]} 26. b4 {[%clk
0:02:37]} 26... h4 {[%clk 0:02:31.6]} 27. b5 {[%clk 0:02:21]} 27... Bc4+ {[%clk
0:02:26.2]} 28. Kg1 {[%clk 0:02:16.1]} 28... Bxb5 {[%clk 0:02:25]} 29. Rxe6
{[%clk 0:02:11.9]} 29... Bc6 {[%clk 0:02:19.6]} 30. Re7 {[%clk 0:02:06.4]} 30...
Rb2 {[%clk 0:01:56.3]} 31. Bd4 {[%clk 0:02:02.7]} 31... Ra2 {[%clk 0:01:31.5]}
32. Rxg7+ {[%clk 0:01:59]} 32... Kh8 {[%clk 0:01:31]} 33. Rxb7+ {[%clk
0:01:55.6]} 33... Kg8 {[%clk 0:01:26.7]} 34. Rg7+ {[%clk 0:01:54.2]} 34... Kh8
{[%clk 0:01:24.4]} 35. Ra7+ {[%clk 0:01:52.8]} 35... Kg8 {[%clk 0:01:19.5]} 36.
Rxa2 {[%clk 0:01:45.4]} 36... Rf4 {[%clk 0:01:01.7]} 37. Bc3 {[%clk 0:01:36.5]}
37... Rg4+ {[%clk 0:00:56.3]} 38. Kf1 {[%clk 0:01:33.3]} 38... Bb5+ {[%clk
0:00:41.7]} 39. Ke1 {[%clk 0:01:31.4]} 39... Re4+ {[%clk 0:00:38.3]} 40. Kd2
{[%clk 0:01:28.4]} 40... Re2+ {[%clk 0:00:37.4]} 41. Kc1 {[%clk 0:01:21.8]}
41... Rxa2 {[%clk 0:00:36]} 42. Rd8+ {[%clk 0:01:13.9]} 42... Kf7 {[%clk
0:00:34.6]} 43. Rd6 {[%clk 0:01:06.1]} 43... Rxf2 {[%clk 0:00:32.5]} 44. h3
{[%clk 0:01:02.5]} 44... Rf1+ {[%clk 0:00:30.6]} 45. Kc2 {[%clk 0:00:59]} 45...
Ba4+ {[%clk 0:00:28.1]} 46. Kd2 {[%clk 0:00:55.9]} 46... Rd1+ {[%clk 0:00:26.4]}
47. Ke2 {[%clk 0:00:51.3]} 47... Rxd6 {[%clk 0:00:26.3]} 48. Ke3 {[%clk
0:00:19.3]} 48... Kg6 {[%clk 0:00:24.5]} 49. Kf3 {[%clk 0:00:18.9]} 49... Rd3+
{[%clk 0:00:23.4]} 50. Kg4 {[%clk 0:00:18.2]} 50... Bd7# {[%clk 0:00:18]} 0-1

[Event "Live Chess"]
[Site "Chess.com"]
[Date "2023.05.20"]
[Round "-"]
[White "Tilbs_12"]
[Black "Salpingidis"]
[Result "0-1"]
[WhiteElo "1561"]
[BlackElo "2274"]
[TimeControl "300"]
[EndTime "13:04:58 PDT"]
[Termination "Salpingidis won on time"]

1. e4 {[%clk 0:04:57.7]} 1... e6 {[%clk 0:04:59.4]} 2. d4 {[%clk 0:04:56.5]}
2... d5 {[%clk 0:04:55.8]} 3. e5 {[%clk 0:04:56.1]} 3... c5 {[%clk 0:04:54]} 4.
c3 {[%clk 0:04:54.8]} 4... Nc6 {[%clk 0:04:52]} 5. Nf3 {[%clk 0:04:54.4]} 5...
Qb6 {[%clk 0:04:46.5]} 6. Bd3 {[%clk 0:04:53.8]} 6... cxd4 {[%clk 0:04:45]} 7.
O-O {[%clk 0:04:52.5]} 7... Bd7 {[%clk 0:04:39.6]} 8. Re1 {[%clk 0:04:47.4]}
8... Nge7 {[%clk 0:04:26.5]} 9. a3 {[%clk 0:04:43.8]} 9... Ng6 {[%clk
0:04:15.1]} 10. b4 {[%clk 0:04:35.5]} 10... dxc3 {[%clk 0:04:05.9]} 11. Nxc3
{[%clk 0:04:33.8]} 11... a6 {[%clk 0:03:51.9]} 12. Be3 {[%clk 0:04:07.9]} 12...
Qd8 {[%clk 0:03:44.8]} 13. Bxg6 {[%clk 0:03:59.4]} 13... hxg6 {[%clk 0:03:42.3]}
14. Na4 {[%clk 0:03:56.6]} 14... Be7 {[%clk 0:03:32.9]} 15. Nc5 {[%clk
0:03:54.2]} 15... Rb8 {[%clk 0:03:13.1]} 16. Qd2 {[%clk 0:03:45.6]} 16... O-O
{[%clk 0:03:04.9]} 17. Rac1 {[%clk 0:03:26.5]} 17... Bc8 {[%clk 0:02:18.7]} 18.
Bg5 {[%clk 0:03:18.7]} 18... Bxg5 {[%clk 0:02:02.7]} 19. Nxg5 {[%clk 0:03:17.3]}
19... Qe7 {[%clk 0:01:47.5]} 20. g3 {[%clk 0:02:50.5]} 20... b6 {[%clk
0:01:31.6]} 21. Nd3 {[%clk 0:02:46.5]} 21... Nd4 {[%clk 0:01:23.7]} 22. Qe3
{[%clk 0:02:34.1]} 22... Nf5 {[%clk 0:01:17.8]} 23. Qd2 {[%clk 0:02:27.5]} 23...
b5 {[%clk 0:01:12.1]} 24. Nc5 {[%clk 0:02:18.8]} 24... Bb7 {[%clk 0:01:06.4]}
25. Nf3 {[%clk 0:02:14.9]} 25... Rfc8 {[%clk 0:00:59.7]} 26. Nd4 {[%clk
0:02:08.5]} 26... Nxd4 {[%clk 0:00:57.6]} 27. Qxd4 {[%clk 0:02:07.3]} 27... Rc6
{[%clk 0:00:49.9]} 28. Kf1 {[%clk 0:01:44.1]} 28... Rbc8 {[%clk 0:00:48.8]} 29.
Rc3 {[%clk 0:01:35.6]} 29... a5 {[%clk 0:00:47.4]} 30. Rec1 {[%clk 0:01:34.8]}
30... axb4 {[%clk 0:00:45.9]} 31. axb4 {[%clk 0:01:34.7]} 31... Ba8 {[%clk
0:00:44.6]} 32. Qf4 {[%clk 0:01:20.6]} 32... f6 {[%clk 0:00:42.9]} 33. Kg2
{[%clk 0:01:12.3]} 33... fxe5 {[%clk 0:00:38.2]} 34. Qxe5 {[%clk 0:01:10.7]}
34... Qf6 {[%clk 0:00:38.1]} 35. Qxf6 {[%clk 0:01:04.3]} 35... gxf6 {[%clk
0:00:38]} 36. f3 {[%clk 0:01:03.2]} 36... Kf7 {[%clk 0:00:36.7]} 37. Kf2 {[%clk
0:01:02]} 37... e5 {[%clk 0:00:35.5]} 38. Ke2 {[%clk 0:00:56.6]} 38... d4 {[%clk
0:00:35]} 39. R3c2 {[%clk 0:00:55.4]} 39... R6c7 {[%clk 0:00:34.1]} 40. Kd3
{[%clk 0:00:54.1]} 40... Bd5 {[%clk 0:00:33.3]} 41. Na6 {[%clk 0:00:49.6]} 41...
Rxc2 {[%clk 0:00:31.4]} 42. Rxc2 {[%clk 0:00:49]} 42... Rxc2 {[%clk 0:00:30.4]}
43. Kxc2 {[%clk 0:00:48.4]} 43... Bxf3 {[%clk 0:00:30.1]} 44. Nc7 {[%clk
0:00:45.4]} 44... Be2 {[%clk 0:00:27.3]} 45. Kd2 {[%clk 0:00:44]} 45... Bc4
{[%clk 0:00:26.7]} 46. Na6 {[%clk 0:00:41.6]} 46... e4 {[%clk 0:00:25.9]} 47.
Nc5 {[%clk 0:00:40.4]} 47... e3+ {[%clk 0:00:25.8]} 48. Ke1 {[%clk 0:00:39.2]}
48... d3 {[%clk 0:00:24]} 49. Ne4 {[%clk 0:00:35.9]} 49... d2+ {[%clk
0:00:22.5]} 50. Nxd2 {[%clk 0:00:35.2]} 50... exd2+ {[%clk 0:00:22.4]} 51. Kxd2
{[%clk 0:00:34.8]} 51... Ke6 {[%clk 0:00:22]} 52. Ke3 {[%clk 0:00:34.5]} 52...
Ke5 {[%clk 0:00:21.9]} 53. Kf3 {[%clk 0:00:33.6]} 53... Kf5 {[%clk 0:00:21.3]}
54. Ke3 {[%clk 0:00:33.1]} 54... Kg4 {[%clk 0:00:20.6]} 55. Kd4 {[%clk
0:00:31.8]} 55... Kh3 {[%clk 0:00:20.5]} 56. Ke4 {[%clk 0:00:31]} 56... Kxh2
{[%clk 0:00:19.9]} 57. Kf4 {[%clk 0:00:30.7]} 57... Kh3 {[%clk 0:00:19.1]} 58.
g4 {[%clk 0:00:30.3]} 58... Kh4 {[%clk 0:00:18.7]} 59. Kf3 {[%clk 0:00:28.4]}
59... f5 {[%clk 0:00:17.9]} 60. gxf5 {[%clk 0:00:27.8]} 60... gxf5 {[%clk
0:00:17.8]} 61. Kf4 {[%clk 0:00:27.2]} 61... Bd3 {[%clk 0:00:17.3]} 62. Kf3
{[%clk 0:00:23.6]} 62... Be4+ {[%clk 0:00:16.6]} 63. Kf4 {[%clk 0:00:22.7]}
63... Kh3 {[%clk 0:00:16.2]} 64. Kg5 {[%clk 0:00:21.3]} 64... Kg3 {[%clk
0:00:16.1]} 65. Kf6 {[%clk 0:00:19.3]} 65... f4 {[%clk 0:00:16]} 66. Ke5 {[%clk
0:00:18.4]} 66... f3 {[%clk 0:00:15.9]} 67. Kxe4 {[%clk 0:00:17.8]} 67... f2
{[%clk 0:00:15.8]} 68. Kd5 {[%clk 0:00:17.3]} 68... f1=Q {[%clk 0:00:15.2]} 69.
Kc5 {[%clk 0:00:17.2]} 69... Qc4+ {[%clk 0:00:14.3]} 70. Kb6 {[%clk 0:00:16.4]}
70... Qxb4 {[%clk 0:00:14.2]} 71. Kc6 {[%clk 0:00:15.3]} 71... Qc4+ {[%clk
0:00:14.1]} 72. Kb6 {[%clk 0:00:14.6]} 72... b4 {[%clk 0:00:14]} 73. Ka5 {[%clk
0:00:13]} 73... b3 {[%clk 0:00:13.9]} 0-1

[Event "Live Chess"]
[Site "Chess.com"]
[Date "2023.05.20"]
[Round "-"]
[White "BritishIsles"]
[Black "Vladyslav2008"]
[Result "1-0"]
[WhiteElo "2429"]
[BlackElo "2160"]
[TimeControl "300"]
[EndTime "13:05:00 PDT"]
[Termination "BritishIsles won by resignation"]

1. d4 {[%clk 0:04:55.6]} 1... Nf6 {[%clk 0:04:58.2]} 2. Bg5 {[%clk 0:04:53.8]}
2... c5 {[%clk 0:04:54.1]} 3. d5 {[%clk 0:04:52.4]} 3... d6 {[%clk 0:04:50.6]}
4. Nc3 {[%clk 0:04:51]} 4... g6 {[%clk 0:04:49.2]} 5. Qd2 {[%clk 0:04:49.7]}
5... Bg7 {[%clk 0:04:47.7]} 6. Bh6 {[%clk 0:04:48.7]} 6... O-O {[%clk
0:04:40.8]} 7. h4 {[%clk 0:04:46.5]} 7... a6 {[%clk 0:04:32.9]} 8. h5 {[%clk
0:04:45]} 8... b5 {[%clk 0:04:31]} 9. Bxg7 {[%clk 0:04:43.7]} 9... Kxg7 {[%clk
0:04:29.6]} 10. hxg6 {[%clk 0:04:42.2]} 10... fxg6 {[%clk 0:04:28.3]} 11. Qh6+
{[%clk 0:04:35.3]} 11... Kg8 {[%clk 0:04:26.8]} 12. Nf3 {[%clk 0:04:34.6]} 12...
Rf7 {[%clk 0:04:14.9]} 13. Ng5 {[%clk 0:04:25]} 13... Rg7 {[%clk 0:04:13.5]} 14.
g3 {[%clk 0:04:15]} 14... Bb7 {[%clk 0:04:07.4]} 15. Qxg7+ {[%clk 0:04:10.1]}
15... Kxg7 {[%clk 0:04:01.5]} 16. Ne6+ {[%clk 0:04:10]} 16... Kf7 {[%clk
0:04:00.7]} 17. Nxd8+ {[%clk 0:04:09.2]} 17... Ke8 {[%clk 0:04:00.4]} 18. Nxb7
{[%clk 0:04:08.2]} 1-0

[Event "Live Chess"]
[Site "Chess.com"]
[Date "2023.05.20"]
[Round "-"]
[White "AttackingSnowLeopard"]
[Black "Enhard"]
[Result "1-0"]
[WhiteElo "2054"]
[BlackElo "1462"]
[TimeControl "300"]
[EndTime "13:05:10 PDT"]
[Termination "AttackingSnowLeopard won by resignation"]

1. d4 {[%clk 0:04:58.6]} 1... c6 {[%clk 0:04:58.3]} 2. c4 {[%clk 0:04:58.2]}
2... d5 {[%clk 0:04:57.3]} 3. Nf3 {[%clk 0:04:56.3]} 3... Nf6 {[%clk 0:04:56.1]}
4. e3 {[%clk 0:04:55.7]} 4... Bf5 {[%clk 0:04:55]} 5. Nc3 {[%clk 0:04:54.9]}
5... e6 {[%clk 0:04:54.3]} 6. Nh4 {[%clk 0:04:52.5]} 6... Bg6 {[%clk 0:04:51.7]}
7. Nxg6 {[%clk 0:04:50.8]} 7... hxg6 {[%clk 0:04:51.6]} 8. Bd2 {[%clk
0:04:50.3]} 8... Nbd7 {[%clk 0:04:50.2]} 9. Qc2 {[%clk 0:04:48.1]} 9... Bb4
{[%clk 0:04:48.2]} 10. O-O-O {[%clk 0:04:43.6]} 10... Bxc3 {[%clk 0:04:34.6]}
11. Bxc3 {[%clk 0:04:42]} 11... dxc4 {[%clk 0:04:34.1]} 12. Bxc4 {[%clk
0:04:40]} 12... Nb6 {[%clk 0:04:33.1]} 13. Be2 {[%clk 0:04:38.1]} 13... Nbd5
{[%clk 0:04:31.3]} 14. Kb1 {[%clk 0:04:36.5]} 14... Nxc3+ {[%clk 0:04:29.1]} 15.
Qxc3 {[%clk 0:04:35.4]} 15... Nd5 {[%clk 0:04:28.5]} 16. Qb3 {[%clk 0:04:33.6]}
16... Qc7 {[%clk 0:04:20.3]} 17. e4 {[%clk 0:04:31.5]} 17... Nb6 {[%clk
0:04:18.2]} 18. g3 {[%clk 0:04:27.6]} 18... O-O-O {[%clk 0:04:16.3]} 19. h4
{[%clk 0:04:25.5]} 19... Qe7 {[%clk 0:04:02.3]} 20. Bf3 {[%clk 0:04:18.4]} 20...
Qf6 {[%clk 0:03:58.6]} 21. e5 {[%clk 0:04:05.5]} 21... Qe7 {[%clk 0:03:53.4]}
22. Rhe1 {[%clk 0:03:57.7]} 22... Nd5 {[%clk 0:03:52.5]} 23. Rc1 {[%clk
0:03:54.9]} 23... Kb8 {[%clk 0:03:50.8]} 24. Rxc6 {[%clk 0:03:50]} 24... Rc8
{[%clk 0:03:40.9]} 25. Rxc8+ {[%clk 0:03:44.1]} 25... Rxc8 {[%clk 0:03:39.3]}
26. Bxd5 {[%clk 0:03:43.8]} 26... exd5 {[%clk 0:03:36.6]} 27. Rc1 {[%clk
0:03:43.4]} 27... Qd7 {[%clk 0:03:31]} 28. Rxc8+ {[%clk 0:03:41.2]} 28... Kxc8
{[%clk 0:03:29.7]} 29. Qc3+ {[%clk 0:03:39.2]} 29... Kb8 {[%clk 0:03:28.7]} 30.
Qf3 {[%clk 0:03:34.5]} 30... a6 {[%clk 0:03:26.4]} 31. a3 {[%clk 0:03:33.3]}
31... Ka7 {[%clk 0:03:24.9]} 32. Ka2 {[%clk 0:03:26.6]} 32... Qc6 {[%clk
0:03:22.1]} 33. Qc3 {[%clk 0:03:25.3]} 33... Qd7 {[%clk 0:03:16.1]} 34. Qc5+
{[%clk 0:03:23.8]} 34... Ka8 {[%clk 0:03:14.1]} 35. Kb3 {[%clk 0:03:16.6]} 35...
Qg4 {[%clk 0:02:57.7]} 36. Qxd5 {[%clk 0:03:12.6]} 36... Qd1+ {[%clk 0:02:55.9]}
37. Ka2 {[%clk 0:03:11.8]} 37... Qe2 {[%clk 0:02:50.5]} 38. Qxf7 {[%clk
0:03:03.9]} 38... Qd3 {[%clk 0:02:45.2]} 39. Qf8+ {[%clk 0:03:02]} 39... Ka7
{[%clk 0:02:42.6]} 40. Qc5+ {[%clk 0:03:01.6]} 40... Kb8 {[%clk 0:02:40.8]} 41.
e6 {[%clk 0:03:00.3]} 41... Qe2 {[%clk 0:02:34.3]} 42. e7 {[%clk 0:02:58.4]}
42... Ka8 {[%clk 0:02:24.1]} 43. Qc8+ {[%clk 0:02:55.2]} 43... Ka7 {[%clk
0:02:22.4]} 44. e8=Q {[%clk 0:02:54.6]} 1-0

[Event "Live Chess"]
[Site "Chess.com"]
[Date "2023.05.20"]
[Round "-"]
[White "rmethornhill"]
[Black "dudeasy"]
[Result "1-0"]
[WhiteElo "1176"]
[BlackElo "1018"]
[TimeControl "300"]
[EndTime "13:05:13 PDT"]
[Termination "rmethornhill won on time"]

1. d4 {[%clk 0:04:58.6]} 1... Nf6 {[%clk 0:04:57.8]} 2. c4 {[%clk 0:04:57.7]}
2... e6 {[%clk 0:04:55.8]} 3. Nc3 {[%clk 0:04:57]} 3... Bb4 {[%clk 0:04:54]} 4.
Bg5 {[%clk 0:04:54.1]} 4... h6 {[%clk 0:04:51.8]} 5. Bh4 {[%clk 0:04:52.9]} 5...
b6 {[%clk 0:04:45.1]} 6. Nf3 {[%clk 0:04:50.6]} 6... Bb7 {[%clk 0:04:42.9]} 7.
e3 {[%clk 0:04:47.4]} 7... d6 {[%clk 0:04:39.2]} 8. a3 {[%clk 0:04:45.4]} 8...
Bxc3+ {[%clk 0:04:35.8]} 9. bxc3 {[%clk 0:04:44.4]} 9... Nbd7 {[%clk 0:04:35]}
10. Bd3 {[%clk 0:04:34.7]} 10... O-O {[%clk 0:04:16.8]} 11. O-O {[%clk
0:04:30.4]} 11... Qc8 {[%clk 0:04:14.4]} 12. Qc2 {[%clk 0:04:14.9]} 12... c5
{[%clk 0:04:03.6]} 13. dxc5 {[%clk 0:04:10.6]} 13... dxc5 {[%clk 0:04:00.4]} 14.
Nd2 {[%clk 0:03:59.7]} 14... Ne8 {[%clk 0:03:27.5]} 15. Be7 {[%clk 0:03:56.1]}
15... Ne5 {[%clk 0:03:24.4]} 16. Bxf8 {[%clk 0:03:47.5]} 16... Kxf8 {[%clk
0:03:22.7]} 17. Be4 {[%clk 0:03:40.3]} 17... Nc6 {[%clk 0:03:18.5]} 18. Nf3
{[%clk 0:03:28.5]} 18... Nd6 {[%clk 0:02:55.3]} 19. Bxc6 {[%clk 0:03:09.5]}
19... Bxc6 {[%clk 0:02:30.4]} 20. Ne5 {[%clk 0:03:05.4]} 20... Kg8 {[%clk
0:02:22.3]} 21. Nxc6 {[%clk 0:03:02.5]} 21... Qxc6 {[%clk 0:02:00.3]} 22. Qe2
{[%clk 0:02:57.9]} 22... Rd8 {[%clk 0:01:57.4]} 23. Rfd1 {[%clk 0:02:54.3]}
23... Rc8 {[%clk 0:01:55.9]} 24. Rd3 {[%clk 0:02:44.2]} 24... Ne4 {[%clk
0:01:52.1]} 25. Rad1 {[%clk 0:02:39.4]} 25... Qa4 {[%clk 0:01:27.4]} 26. f3
{[%clk 0:02:20.3]} 26... Nf6 {[%clk 0:01:00.4]} 27. Rd8+ {[%clk 0:02:11.3]}
27... Rxd8 {[%clk 0:00:18.4]} 28. Rxd8+ {[%clk 0:02:10]} 28... Kh7 {[%clk
0:00:18.1]} 29. Qd3+ {[%clk 0:02:08.6]} 29... g6 {[%clk 0:00:16.1]} 30. e4
{[%clk 0:01:41.7]} 30... Qxa3 {[%clk 0:00:14.3]} 31. e5 {[%clk 0:01:41]} 31...
Nh5 {[%clk 0:00:12.4]} 32. Qd7 {[%clk 0:01:25.7]} 32... Qc1+ {[%clk 0:00:11.8]}
33. Qd1 {[%clk 0:01:23]} 33... Qe3+ {[%clk 0:00:10.5]} 34. Kh1 {[%clk
0:01:20.6]} 34... Nf4 {[%clk 0:00:07.5]} 35. Rd7 {[%clk 0:01:11]} 35... Kg7
{[%clk 0:00:05]} 36. Rxa7 {[%clk 0:01:10]} 36... Qxe5 {[%clk 0:00:03.8]} 37. Ra6
{[%clk 0:01:02.1]} 37... Qxc3 {[%clk 0:00:02.5]} 38. Rxb6 {[%clk 0:00:59.2]}
38... Nd3 {[%clk 0:00:01.4]} 39. Qg1 {[%clk 0:00:48.5]} 39... Qd2 {[%clk
0:00:00.4]} 40. h4 {[%clk 0:00:40.8]} 1-0

[Event "Live Chess"]
[Site "Chess.com"]
[Date "2023.05.20"]
[Round "-"]
[White "Duke_of_Bebington"]
[Black "Long1968"]
[Result "0-1"]
[WhiteElo "1592"]
[BlackElo "1340"]
[TimeControl "300"]
[EndTime "13:05:13 PDT"]
[Termination "Long1968 won by resignation"]

1. e4 {[%clk 0:04:55.6]} 1... e6 {[%clk 0:04:56.8]} 2. d4 {[%clk 0:04:54.1]}
2... d5 {[%clk 0:04:54.6]} 3. Nd2 {[%clk 0:04:52.7]} 3... Nf6 {[%clk 0:04:51.4]}
4. Bd3 {[%clk 0:04:51]} 4... c5 {[%clk 0:04:45.4]} 5. c3 {[%clk 0:04:49.6]} 5...
dxe4 {[%clk 0:04:38.5]} 6. Nxe4 {[%clk 0:04:46.8]} 6... Nc6 {[%clk 0:04:32.9]}
7. Be3 {[%clk 0:04:38.3]} 7... cxd4 {[%clk 0:04:22]} 8. Bxd4 {[%clk 0:04:32.9]}
8... Nxd4 {[%clk 0:04:18.5]} 9. cxd4 {[%clk 0:04:30.4]} 9... Nxe4 {[%clk
0:04:00.5]} 10. Bxe4 {[%clk 0:04:28.7]} 10... Bb4+ {[%clk 0:03:57.3]} 11. Kf1
{[%clk 0:04:26]} 11... Bd7 {[%clk 0:03:42.3]} 12. Ne2 {[%clk 0:04:16.4]} 12...
Qb6 {[%clk 0:03:17.6]} 13. a3 {[%clk 0:04:07.8]} 13... Be7 {[%clk 0:03:06.7]}
14. b4 {[%clk 0:04:04.5]} 14... Bb5 {[%clk 0:02:56.7]} 15. Bd3 {[%clk
0:03:57.8]} 15... Bf6 {[%clk 0:02:47.1]} 16. g3 {[%clk 0:03:41.6]} 16... O-O
{[%clk 0:02:32.5]} 17. Bxb5 {[%clk 0:03:33.4]} 17... Qxb5 {[%clk 0:02:28.3]} 18.
Rc1 {[%clk 0:03:32.9]} 18... Rac8 {[%clk 0:02:15.7]} 19. Rxc8 {[%clk 0:03:27.3]}
19... Rxc8 {[%clk 0:02:11.8]} 20. Kg2 {[%clk 0:03:26.4]} 20... Qd5+ {[%clk
0:01:45.4]} 21. f3 {[%clk 0:03:24.2]} 21... Rc4 {[%clk 0:01:39.2]} 22. Qa1
{[%clk 0:03:01.4]} 22... Bxd4 {[%clk 0:01:29.3]} 23. Nxd4 {[%clk 0:02:57.9]}
23... Rxd4 {[%clk 0:01:22]} 24. Rc1 {[%clk 0:02:55.2]} 24... Rd2+ {[%clk
0:01:06.2]} 25. Kg1 {[%clk 0:02:50.4]} 25... Qd8 {[%clk 0:00:54.7]} 26. Rc3
{[%clk 0:02:40.7]} 26... Rd1+ {[%clk 0:00:43.7]} 27. Qxd1 {[%clk 0:02:37.1]}
27... Qxd1+ {[%clk 0:00:40.7]} 28. Kg2 {[%clk 0:02:36.3]} 28... Qd2+ {[%clk
0:00:38]} 0-1